bitfinex/quotes_ETHUSD_20250520
["timestamp","ask_amount","ask_price","bid_price","bid_amount"]
[1747745275837,4.02706185,2483.2,2483.1,0.8984]
[1747745276038,4.02706185,2483.2,2483.1,1.4484]
[1747745278075,4.02693149,2483.3,2483.2,1.3298]
[1747745278305,4.02562957,2484.1,2483.3,0.7798]
[1747745278522,4.02648593,2483.6,2483.5,1.3588]
[1747745278701,4.02648593,2483.6,2483.5,0.8088]
[1747745278898,4.02648593,2483.6,2483.5,9.1218]
[1747745282122,4.02648593,2483.6,2483.5,8.313]
[1747745282278,4.87534104,2483.6,2483.5,8.313]
[1747745282903,7.95655352,2483.6,2483.5,8.313]
[1747745283105,15.95655352,2483.6,2483.5,8.313]
[1747745283483,4.02706185,2483.2,2483.1,8.398]
[1747745283884,4.02706185,2483.2,2483.1,9.2157]
[1747745284115,4.02706185,2483.2,2483.1,10.13727]
[1747745284620,4.02706185,2483.2,2483.1,9.2157]
[1747745285020,4.02706185,2483.2,2483.1,8.398]
[1747745285826,4.02706185,2483.2,2483.1,9.1503]
[1747745286130,0.4358,2484.8,2483.5,0.55]
[1747745286341,4.02576489,2484.0,2483.9,0.55]
[1747745286630,4.02544078,2484.2,2484.1,1.3195]
[1747745286852,4.02544078,2484.2,2484.1,9.6175]
[1747745287131,4.02544078,2484.2,2484.1,9.0675]
[1747745287920,4.02576489,2484.0,2483.9,17.387]
[1747745288126,4.02576489,2484.0,2483.9,25.685]
[1747745288920,4.02576489,2484.0,2483.9,29.65505]
[1747745290855,4.02576489,2484.0,2483.9,36.193982]
[1747745291156,4.02539538,2484.3,2484.2,0.55]
[1747745291451,4.02493102,2484.6,2484.3,1.31]
[1747745291652,4.02493102,2484.6,2484.4,10.6945591]
[1747745291653,4.02503775,2484.5,2484.4,10.6945591]
[1747745291962,4.02503775,2484.5,2484.4,14.2331851]
[1747745292319,4.02503775,2484.5,2484.4,10.6945591]
[1747745292516,4.02503775,2484.5,2484.4,10.1445591]
[1747745296279,4.02503775,2484.5,2484.4,9.057]
[1747745298496,4.02503775,2484.5,2484.4,8.297]
[1747745299195,4.02544078,2484.2,2484.1,0.7906]
[1747745299391,4.02544078,2484.2,2484.1,8.295]
[1747745299756,4.02576489,2484.0,2483.9,17.387]
[1747745299956,5.23344931,2484.0,2483.9,17.387]
[1747745304281,4.02592696,2483.9,2483.8,8.295]
[1747745304497,4.02689968,2483.3,2483.2,25.679]
[1747745304880,12.02689968,2483.3,2483.2,8.296]
[1747745305220,13.20355137,2483.3,2483.2,8.296]
[1747745306128,4.02689968,2483.3,2483.2,8.296]
[1747745312362,4.02706185,2483.2,2483.1,8.397]
[1747745315265,12.02706185,2483.2,2483.1,8.397]
[1747745315767,12.46286185,2483.2,2483.1,8.397]
[1747745315983,12.46286185,2483.2,2483.1,0.1]
[1747745317182,22.57286185,2483.2,2483.1,0.1]
[1747745318787,23.12286185,2483.2,2483.1,0.1]
[1747745319200,22.57286185,2483.2,2483.1,0.1]
[1747745321358,4.02706185,2483.2,2483.1,0.1]
[1747745323593,4.02706185,2483.2,2483.1,0.9057]
[1747745323947,4.02694868,2483.3,2483.2,0.55]
[1747745324103,4.02694868,2483.3,2483.2,1.3144]
[1747745324312,4.02689968,2483.3,2483.2,1.3144]
[1747745324603,4.0260445,2483.9,2483.3,0.7644]
[1747745324794,4.02625115,2483.7,2483.6,0.55]
[1747745324989,4.02625115,2483.7,2483.6,11.3944]
[1747745325617,4.02625115,2483.7,2483.6,10.8444]
[1747745325826,4.02625115,2483.7,2483.6,9.0504]
[1747745326032,4.02625115,2483.7,2483.6,9.6004]
[1747745326408,4.02625115,2483.7,2483.6,9.0504]
[1747745327207,4.02625115,2483.7,2483.6,9.6004]
[1747745327391,4.02616793,2483.8,2483.7,0.55]
[1747745327597,4.02616793,2483.8,2483.7,1.3761]
[1747745328830,4.02297585,2483.8,2483.7,1.3761]
[1747745329337,4.02579322,2484.0,2483.8,0.7693]
[1747745329544,4.02592696,2483.9,2483.8,1.3193]
[1747745329709,4.02583459,2484.0,2483.9,0.55]
[1747745330033,4.02583459,2484.0,2483.9,1.3364]
[1747745330737,4.02462516,2484.8,2483.9,1.3364]
[1747745330738,4.02429329,2485.0,2484.0,0.8226]
[1747745330941,4.02502665,2484.5,2484.3,0.55]
[1747745331106,4.02479272,2484.6,2484.5,0.55]
[1747745331430,4.02479272,2484.6,2484.5,8.834]
[1747745331610,4.02479272,2484.6,2484.5,8.284]
[1747745331812,4.02479272,2484.6,2484.5,9.1035]
[1747745332200,4.02479272,2484.6,2484.5,8.284]
[1747745333213,4.02479272,2484.6,2484.5,10.8508]
[1747745333415,4.02479272,2484.6,2484.5,8.284]
[1747745334297,4.02479272,2484.6,2484.4,17.384]
[1747745334298,4.02495471,2484.5,2484.4,17.384]
[1747745334503,4.02495471,2484.5,2484.4,25.667]
[1747745335914,4.02592696,2483.9,2483.7,17.382]
[1747745336237,4.02592696,2483.9,2483.8,8.283]
[1747745341266,4.02584301,2484.0,2483.9,0.55]
[1747745341786,4.02592696,2483.9,2483.8,19.72248]
[1747745341925,4.02592696,2483.9,2483.8,20.27248]
[1747745343425,4.02592696,2483.9,2483.8,19.72248]
[1747745343566,4.02592696,2483.9,2483.7,17.382]
[1747745343567,4.02608905,2483.8,2483.7,17.382]
[1747745343732,4.02608905,2483.8,2483.7,25.664]
[1747745349773,4.02608905,2483.8,2483.7,26.9649]
[1747745349973,4.02608905,2483.8,2483.7,29.66139]
[1747745350173,4.02608905,2483.8,2483.7,35.982987]
[1747745350365,4.02608905,2483.8,2483.7,29.66139]
[1747745351283,4.02608905,2483.8,2483.7,37.66139]
[1747745353716,3.90773273,2483.8,2483.7,37.66139]
[1747745353865,4.0248257,2484.6,2483.7,37.66139]
[1747745353866,5.2797201,2486.1,2484.2,4.3921967]
[1747745354189,4.02304058,2485.7,2485.2,0.7693]
[1747745354355,4.02304058,2485.7,2485.4,8.55]
[1747745354550,4.02333534,2485.5,2485.4,8.55]
[1747745354863,4.02333534,2485.5,2485.4,0.55]
[1747745355080,4.02324665,2485.6,2485.4,0.55]
[1747745355250,4.02333534,2485.5,2485.4,0.55]
[1747745355864,4.02325466,2485.6,2485.4,0.55]
[1747745356591,4.02333534,2485.5,2485.4,0.55]
[1747745356747,4.0233141,2485.6,2485.4,0.55]
[1747745356951,4.02330781,2485.6,2485.4,0.55]
[1747745357146,4.02333534,2485.5,2485.4,0.55]
[1747745363007,0.1,2485.9,2485.5,0.8003]
[1747745363321,4.02317347,2485.6,2485.5,15.3823]
[1747745363473,4.02317347,2485.6,2485.5,19.27055]
[1747745363673,4.02304708,2485.7,2485.6,0.55]
[1747745364371,4.02293593,2485.8,2485.6,8.55]
[1747745364548,4.02293593,2485.8,2485.6,11.157913]
[1747745364549,4.02301162,2485.7,2485.6,11.157913]
[1747745365069,4.02294644,2485.8,2485.6,16.785913]
[1747745365265,0.1,2485.9,2485.6,11.157913]
[1747745365465,0.1,2485.9,2485.8,9.3322]
[1747745365677,0.1,2485.9,2485.8,29.574343]
[1747745365883,0.1,2485.9,2485.8,27.72706388]
[1747745366283,4.12268796,2485.9,2485.8,12.94756288]
[1747745366592,4.12268796,2485.9,2485.8,9.5952]
[1747745368096,4.12268796,2485.9,2485.8,8.813]
[1747745370405,4.12268796,2485.9,2485.8,8.263]
[1747745371876,4.12268796,2485.9,2485.4,3.24683]
[1747745371877,4.02333534,2485.5,2485.4,3.24683]
[1747745372100,4.02333534,2485.5,2485.4,17.53783]
[1747745372985,4.02308737,2485.7,2485.5,0.55]
[1747745373187,4.02295894,2485.8,2485.6,2.199593]
[1747745373389,4.02295894,2485.8,2485.6,2.749593]
[1747745373390,4.02301162,2485.7,2485.6,2.749593]
[1747745374079,4.02301162,2485.7,2485.6,2.199593]
[1747745374278,4.02333534,2485.5,2485.4,17.53783]
[1747745375413,4.02333534,2485.5,2485.4,17.52683]
[1747745375911,4.02333534,2485.5,2485.4,11.49683]
[1747745377820,4.02323743,2485.6,2485.4,11.49683]
[1747745377993,4.02323743,2485.6,2485.4,20.692225]
[1747745378193,4.02323743,2485.6,2485.5,11.0337285]
[1747745378392,4.02323743,2485.6,2485.5,6.2652135]
[1747745378602,4.02323743,2485.6,2485.5,5.9460975]
[1747745378803,4.02323743,2485.6,2485.5,3.8895325]
[1747745379226,4.02323743,2485.6,2485.5,6.0249745]
[1747745379412,4.02323743,2485.6,2485.5,12.6885325]
[1747745379595,4.02323743,2485.6,2485.5,8.799]
[1747745380595,4.02323743,2485.6,2485.5,12.4531]
[1747745380795,4.02323743,2485.6,2485.5,8.799]
[1747745381891,4.02323743,2485.6,2485.5,8.249]
[1747745382411,4.02349722,2485.4,2485.3,17.381]
[1747745382621,4.02349722,2485.4,2485.3,25.63]
[1747745383841,4.02349722,2485.4,2485.3,28.796]
[1747745384003,4.02349722,2485.4,2485.3,29.346]
[1747745384429,4.02349722,2485.4,2485.3,29.73112923]
[1747745384813,4.02349722,2485.4,2485.3,26.01512923]
[1747745386199,4.02349722,2485.4,2485.3,44.31155323]
[1747745386438,4.02349722,2485.4,2485.3,27.31982923]
[1747745386639,4.02349722,2485.4,2485.3,25.63]
[1747745387945,4.02349722,2485.4,2485.3,17.381]
[1747745388145,4.02349722,2485.4,2485.3,25.631]
[1747745391266,4.02349722,2485.4,2485.3,17.381]
[1747745391568,4.02349722,2485.4,2485.3,25.631]
[1747745394229,4.02349722,2485.4,2485.3,29.30331511]
[1747745395565,4.02349722,2485.4,2485.3,25.631]
[1747745395721,4.02349722,2485.4,2485.3,31.661]
[1747745398167,4.02349722,2485.4,2485.3,25.631]
[1747745398369,4.02349722,2485.4,2485.3,17.381]
[1747745398571,4.02349722,2485.4,2485.3,25.631]
[1747745401441,4.02349722,2485.4,2485.3,17.381]
[1747745401642,4.02349722,2485.4,2485.3,25.631]
[1747745401976,1.60148685,2485.4,2484.5,0.4767649]
[1747745402294,4.0230141,2485.7,2484.5,0.4767649]
[1747745402295,6.42319415,2484.6,2484.5,0.4767649]
[1747745402436,14.42319415,2484.6,2484.5,0.4767649]
[1747745402875,4.79351672,2484.4,2484.3,0.63556245]
[1747745403061,14.39511815,2484.4,2484.3,0.63556245]
[1747745403264,4.02544078,2484.2,2484.1,8.25]
[1747745403450,14.40734221,2484.2,2484.1,8.25]
[1747745403973,4.02625115,2483.7,2483.6,17.369]
[1747745404177,4.81226185,2483.2,2482.9,17.37]
[1747745404694,5.85634045,2483.2,2483.1,8.351]
[1747745405266,13.85634045,2483.2,2483.1,8.351]
[1747745407663,4.81226185,2483.2,2483.1,8.351]
[1747745407864,4.02625115,2483.7,2483.1,8.351]
[1747745407865,4.02592696,2483.9,2483.1,8.351]
[1747745408076,3.08270669,2484.3,2483.1,8.351]
[1747745408077,4.02706185,2483.2,2483.1,0.1]
[1747745408285,4.02706185,2483.2,2483.1,8.34]
[1747745409386,4.02706185,2483.2,2483.1,8.342]
[1747745409568,5.22383094,2483.2,2483.1,8.342]
[1747745409764,4.02706185,2483.2,2483.1,8.342]
[1747745412703,4.80426185,2483.2,2483.1,8.342]
[1747745415807,4.80426185,2483.2,2483.1,8.344]
[1747745416891,12.80426185,2483.2,2483.1,8.344]
[1747745419634,13.21050807,2483.2,2483.1,0.1]
[1747745421922,23.32050807,2483.2,2483.1,0.1]
[1747745423310,23.32050807,2483.2,2483.1,8.346]
[1747745423311,14.54330807,2483.2,2483.1,8.346]
[1747745423642,14.13706185,2483.2,2483.1,8.346]
[1747745424631,22.93036185,2483.2,2483.1,0.1]
[1747745430185,14.13706185,2483.2,2483.1,0.1]
[1747745430398,4.02706185,2483.2,2483.1,0.1]
[1747745430842,4.83246027,2483.2,2483.1,0.1]
[1747745431049,12.83246027,2483.2,2483.1,8.347]
[1747745431352,13.63776027,2483.2,2483.1,8.347]
[1747745433883,4.02706185,2483.2,2483.1,8.347]
[1747745436553,4.83226185,2483.2,2483.1,8.347]
[1747745437451,4.02706185,2483.2,2483.1,8.347]
[1747745437700,12.02706185,2483.2,2483.1,8.347]
[1747745438739,12.02706185,2483.2,2482.1,0.1]
[1747745438740,4.02868423,2482.2,2482.1,0.1]
[1747745439912,12.02868423,2482.2,2482.1,0.1]
[1747745444197,4.02868423,2482.2,2482.1,0.1]
[1747745451700,4.02868423,2482.2,2482.1,8.336]
[1747745453364,4.02794255,2482.7,2482.2,0.7731]
[1747745453600,0.8063,2483.8,2482.6,0.7731]
[1747745453802,4.02641327,2483.6,2482.9,0.7731]
[1747745454012,4.02753579,2483.0,2482.9,0.7731]
[1747745456509,4.02592696,2483.9,2483.1,0.7928]
[1747745456826,4.02720221,2483.2,2483.1,0.7928]
[1747745457021,4.02720221,2483.2,2483.1,9.0278]
[1747745457876,4.02689422,2483.4,2483.3,0.8269]
[1747745458906,4.02689422,2483.4,2483.3,9.0619]
[1747745464597,4.02771064,2482.8,2482.7,17.395]
[1747745464817,4.02771064,2482.8,2482.7,25.628]
[1747745465206,4.02771064,2482.8,2482.7,28.9852]
[1747745465811,4.02771064,2482.8,2482.7,29.5352]
[1747745466204,4.02771064,2482.8,2482.7,26.4224]
[1747745466420,4.02742228,2483.0,2482.9,1.3657]
[1747745467225,4.02724926,2483.1,2483.0,0.55]
[1747745471455,4.0270859,2483.2,2483.0,0.55]
[1747745471659,4.02592418,2484.0,2483.2,0.55]
[1747745471660,4.02686737,2483.4,2483.2,0.55]
[1747745471859,4.02626582,2483.7,2483.4,0.55]
[1747745472024,0.769,2484.7,2483.7,0.7831]
[1747745472359,0.1,2484.9,2484.1,0.7502]
[1747745472660,4.02496972,2484.5,2484.1,0.7502]
[1747745472859,4.02544078,2484.2,2484.1,1.3002]
[1747745473019,4.02544078,2484.2,2484.1,8.9712]
[1747745475745,4.02544078,2484.2,2484.1,8.9702]
[1747745476470,4.02544078,2484.2,2484.1,8.22]
[1747745476871,4.02592696,2483.9,2483.8,18.1627]
[1747745477070,4.02592696,2483.9,2483.8,26.3827]
[1747745477389,4.02592696,2483.9,2483.8,27.41885887]
[1747745480968,4.02592696,2483.9,2483.8,27.41785887]
[1747745481251,4.02583257,2484.0,2483.8,27.41785887]
[1747745482284,4.02481212,2484.6,2483.8,27.41785887]
[1747745482441,4.02576489,2484.0,2483.9,3.29178589]
[1747745482642,4.02576489,2484.0,2483.9,16.81202989]
[1747745483073,4.02576489,2484.0,2483.9,16.06248689]
[1747745483279,4.02576489,2484.0,2483.9,4.48414719]
[1747745483640,4.02576489,2484.0,2483.9,22.95139919]
[1747745483867,4.02576489,2484.0,2483.9,17.20059319]
[1747745484278,4.12443736,2484.9,2484.0,0.55]
[1747745484481,4.02544798,2484.2,2484.1,3.81771932]
[1747745484772,4.0253241,2484.3,2484.1,4.289403]
[1747745484980,4.0253241,2484.3,2484.2,15.250212]
[1747745485139,4.02544078,2484.2,2484.1,1.3221]
[1747745485346,4.02544078,2484.2,2484.1,13.996568]
[1747745485580,4.02544078,2484.2,2484.1,16.61573152]
[1747745486389,4.02492232,2484.6,2484.2,8.55]
[1747745486588,4.02476113,2484.7,2484.5,0.55]
[1747745486878,4.02476113,2484.7,2484.6,11.215537]
[1747745487068,4.02476113,2484.7,2484.6,12.7995237]
[1747745487579,4.02476113,2484.7,2484.6,9.7085607]
[1747745487944,4.02476113,2484.7,2484.6,2.0030237]
[1747745488261,4.02476113,2484.7,2484.6,6.420503]
[1747745488465,4.02479272,2484.6,2484.5,8.55]
[1747745488983,4.02464108,2484.7,2484.5,21.534653]
[1747745489141,4.02464108,2484.7,2484.6,6.970503]
[1747745489340,4.02464108,2484.7,2484.6,8.6040233]
[1747745489881,4.02462054,2484.8,2484.7,0.7807]
[1747745490048,4.02462054,2484.8,2484.7,26.3747]
[1747745490461,4.02462054,2484.8,2484.7,29.54693]
[1747745490661,4.02462054,2484.8,2484.7,26.3747]
[1747745490857,4.02462054,2484.8,2484.7,29.19482203]
[1747745491178,4.02462054,2484.8,2484.7,25.594]
[1747745492784,4.02462054,2484.8,2484.7,26.144]
[1747745493097,4.02462054,2484.8,2484.7,26.13880798]
[1747745495215,4.02462054,2484.8,2484.7,25.592]
[1747745498951,4.02462054,2484.8,2484.7,30.49799]
[1747745499070,4.02462054,2484.8,2484.7,33.97569288]
[1747745499712,0.1,2484.9,2484.8,0.55]
[1747745499884,0.1,2484.9,2484.8,18.306293]
[1747745500572,4.12430681,2484.9,2484.8,18.306293]
[1747745500882,4.12430681,2484.9,2484.8,14.179546]
[1747745501082,4.12430681,2484.9,2484.8,18.08190888]
[1747745501306,4.12430681,2484.9,2484.8,15.61977888]
[1747745502376,4.12430681,2484.9,2484.8,15.10285683]
[1747745502572,0.1,2484.9,2484.8,15.10285683]
[1747745504904,0.1,2484.9,2484.8,19.49467872]
[1747745506553,4.02291432,2485.8,2485.2,0.55]
[1747745506716,0.1,2485.9,2485.5,0.8104]
[1747745506910,0.1,2485.9,2485.7,0.55]
[1747745507114,4.12268796,2485.9,2485.8,28.890385]
[1747745507358,0.1,2485.9,2485.8,16.75]
[1747745507713,0.1,2485.9,2485.8,24.327036]
[1747745507919,0.1,2485.9,2485.8,25.100736]
[1747745508227,0.1,2485.9,2485.8,32.62366368]
[1747745508432,0.1,2485.9,2485.8,29.22776541]
[1747745508628,0.1,2485.9,2485.8,35.25776541]
[1747745508835,0.1,2485.9,2485.8,39.07365101]
[1747745509339,0.1,2485.9,2485.8,39.4567933]
[1747745509847,0.1,2485.9,2485.8,39.2614725]
[1747745510735,0.1,2485.9,2485.8,39.2604725]
[1747745511661,0.1,2485.9,2485.8,39.66426112]
[1747745512159,0.1,2485.9,2485.8,32.08722512]
[1747745512314,0.1,2485.9,2485.8,59.81413612]
[1747745515427,4.02155047,2486.7,2486.3,0.55]
[1747745515623,4.12112967,2486.9,2486.5,8.55]
[1747745515824,4.12117086,2486.9,2486.7,0.55]
[1747745516024,4.12117086,2486.9,2486.8,12.794678]
[1747745516430,0.1,2486.9,2486.8,12.794678]
[1747745516629,4.1210704,2486.9,2486.8,15.8106458]
[1747745516925,0.1,2486.9,2486.8,23.8106458]
[1747745517126,0.1,2486.9,2486.8,27.93395669]
[1747745517541,0.1,2486.9,2486.8,28.15774373]
[1747745517718,0.1,2486.9,2486.8,24.53863484]
[1747745517919,0.1,2486.9,2486.8,30.56663484]
[1747745519032,4.1210704,2486.9,2486.8,38.76263484]
[1747745519236,4.1210704,2486.9,2486.8,35.30921684]
[1747745519555,0.1,2486.9,2486.8,35.0854298]
[1747745519864,0.1,2486.9,2486.8,38.70453869]
[1747745520626,0.1,2486.9,2486.8,20.8614298]
[1747745520870,0.1,2486.9,2486.8,33.7580418]
[1747745521174,4.1210704,2486.9,2486.8,17.2389678]
[1747745521341,4.1210704,2486.9,2486.8,27.3498918]
[1747745521957,4.1210704,2486.9,2486.8,27.8998918]
[1747745522124,0.1,2486.9,2486.8,27.8998918]
[1747745522521,4.1210704,2486.9,2486.8,27.8998918]
[1747745522787,0.1,2486.9,2486.8,27.8998918]
[1747745522961,0.1,2486.9,2486.8,28.6572918]
[1747745525762,0.1,2486.9,2486.8,32.49962343]
[1747745525960,4.02017307,2487.5,2487.2,0.7934]
[1747745526160,4.0201005,2487.5,2487.4,0.55]
[1747745526361,4.0201005,2487.5,2487.4,27.4337092]
[1747745526592,4.0201005,2487.5,2487.4,11.4220412]
[1747745526737,4.0201005,2487.5,2487.4,18.3801]
[1747745527531,4.01972034,2487.8,2487.4,18.783135]
[1747745527738,4.0197773,2487.7,2487.6,0.55]
[1747745528035,0.1,2487.9,2487.6,12.896506]
[1747745528266,4.11945415,2487.9,2487.8,0.55]
[1747745528581,0.1,2487.9,2487.8,24.183096]
[1747745528786,4.11945415,2487.9,2487.8,16.086136]
[1747745529192,0.1,2487.9,2487.8,11.203236]
[1747745529525,0.1,2487.9,2487.8,13.700356]
[1747745529826,4.11945415,2487.9,2487.8,13.700356]
[1747745531217,4.11945415,2487.9,2487.8,22.201]
[1747745531426,4.11945415,2487.9,2487.8,24.383462]
[1747745531783,0.1,2487.9,2487.8,26.910351]
[1747745531997,0.1,2487.9,2487.8,27.713251]
[1747745533109,0.1,2487.9,2487.8,27.711251]
[1747745534224,0.1,2487.9,2487.8,31.55239458]
[1747745534424,0.1,2487.9,2487.8,27.93474043]
[1747745534735,0.1,2487.9,2487.8,21.10684043]
[1747745535024,4.11945415,2487.9,2487.8,14.42148943]
[1747745535235,4.11945415,2487.9,2487.8,14.198]
[1747745535405,4.11945415,2487.9,2487.8,22.198]
[1747745535919,0.1,2487.9,2487.8,37.425504]
[1747745536116,4.11945415,2487.9,2487.8,37.975504]
[1747745536429,4.11945415,2487.9,2487.8,28.7056504]
[1747745537191,0.1,2487.9,2487.8,29.5156504]
[1747745537837,0.1,2487.9,2487.8,29.73959497]
[1747745539196,4.10730504,2488.9,2488.4,4.1666987]
[1747745539397,4.01816209,2488.7,2488.6,8.55]
[1747745539696,4.01816209,2488.7,2488.6,28.092114]
[1747745539896,0.0893911,2488.9,2488.6,28.092114]
[1747745540130,4.1072303,2488.9,2488.8,8.0]
[1747745540331,4.1072303,2488.9,2488.8,22.363639]
[1747745540652,0.0893911,2488.9,2488.8,36.841285]
[1747745540822,0.0893911,2488.9,2488.8,40.45737545]
[1747745541001,0.0893911,2488.9,2488.8,40.68114735]
[1747745541866,0.0893911,2488.9,2488.8,44.29734792]
[1747745542181,4.01691725,2489.5,2488.9,4.16605141]
[1747745542182,4.01721956,2489.3,2488.9,4.16605141]
[1747745542404,4.01710981,2489.4,2488.9,4.16605141]
[1747745542676,4.01710981,2489.4,2489.2,0.55]
[1747745542887,4.01696638,2489.5,2489.3,16.9452]
[1747745543175,4.01696638,2489.5,2489.4,25.349]
[1747745543482,4.01507257,2490.7,2489.5,8.7695]
[1747745543686,4.01507257,2490.7,2489.6,17.10543945]
[1747745543687,0.7509,2490.2,2489.6,17.10543945]
[1747745543883,4.01654817,2489.7,2489.6,11.61709045]
[1747745544031,4.01654817,2489.7,2489.6,22.50451045]
[1747745544233,4.01654817,2489.7,2489.6,16.17]
[1747745544544,4.01638685,2489.8,2489.7,8.0]
[1747745544545,4.0164431,2489.8,2489.7,8.0]
[1747745544729,4.7946431,2489.8,2489.7,16.17]
[1747745545449,4.01687085,2489.5,2489.4,25.349]
[1747745545641,4.01687085,2489.5,2489.4,42.554417]
[1747745545863,4.01687085,2489.5,2489.4,39.854417]
[1747745546344,4.01687085,2489.5,2489.4,33.519]
[1747745546540,4.01687085,2489.5,2489.4,33.518]
[1747745547873,4.01687085,2489.5,2489.4,43.06352]
[1747745548074,4.01687085,2489.5,2489.4,45.76779288]
[1747745548290,4.01687085,2489.5,2489.4,42.09079288]
[1747745548577,4.01687085,2489.5,2489.4,33.518]
[1747745549555,4.01687085,2489.5,2489.4,25.349]
[1747745549756,4.01687085,2489.5,2489.4,33.517]
[1747745550574,4.01687085,2489.5,2489.4,25.349]
[1747745550759,4.01687085,2489.5,2489.4,33.517]
[1747745551090,4.78657085,2489.5,2489.4,17.349]
[1747745551257,5.58993045,2489.5,2489.4,25.517]
[1747745553284,4.78657085,2489.5,2489.4,25.517]
[1747745554785,4.01687085,2489.5,2489.4,25.517]
[1747745554987,4.01687085,2489.5,2489.4,32.16323]
[1747745555142,4.01687085,2489.5,2489.4,25.517]
[1747745555344,4.01687085,2489.5,2489.4,29.131]
[1747745555545,4.01687085,2489.5,2489.4,28.351987]
[1747745556173,4.01678266,2489.6,2489.4,29.131]
[1747745556370,4.01667329,2489.7,2489.6,8.0]
[1747745556583,4.01667329,2489.7,2489.6,15.420987]
[1747745557491,4.01667329,2489.7,2489.6,13.846987]
[1747745557685,4.01667329,2489.7,2489.6,17.74934988]
[1747745558094,0.1,2489.9,2489.6,17.74934988]
[1747745558293,0.1,2489.9,2489.6,12.72416288]
[1747745558455,4.11636665,2489.9,2489.7,0.04015925]
[1747745558660,4.11636665,2489.9,2489.8,18.439427]
[1747745558861,4.11636665,2489.9,2489.8,13.261099]
[1747745559094,0.1,2489.9,2489.8,17.05169058]
[1747745559863,0.1,2489.9,2489.8,17.27558939]
[1747745560460,4.11622555,2489.9,2489.8,11.25458939]
[1747745560655,4.11622555,2489.9,2489.8,10.70458939]
[1747745560863,4.11622555,2489.9,2489.8,26.02370739]
[1747745561162,4.11622555,2489.9,2489.8,25.79980858]
[1747745561695,4.11622555,2489.9,2489.8,8.40272158]
[1747745561862,4.11622555,2489.9,2489.8,12.58094158]
[1747745562062,4.11622555,2489.9,2489.8,19.66846758]
[1747745562259,4.91382555,2489.9,2489.8,3.115746]
[1747745562557,4.01687085,2489.5,2489.4,25.349]
[1747745562758,4.01687085,2489.5,2489.4,38.041]
[1747745563189,4.01687085,2489.5,2489.4,38.26502794]
[1747745563400,4.01687085,2489.5,2489.4,32.45707082]
[1747745563700,4.01687085,2489.5,2489.4,40.45707082]
[1747745563859,4.01687085,2489.5,2489.4,17.349]
[1747745564058,4.76937085,2489.5,2489.4,17.349]
[1747745564283,4.76937085,2489.5,2489.4,25.499]
[1747745564923,4.76937085,2489.5,2489.4,17.349]
[1747745565078,4.76937085,2489.5,2489.4,25.499]
[1747745565395,5.64798088,2489.5,2489.4,25.499]
[1747745567598,5.64798088,2489.5,2489.4,17.349]
[1747745567806,4.01880802,2488.3,2488.2,0.47925443]
[1747745568017,4.01880802,2488.3,2488.2,53.69616543]
[1747745568174,4.01880802,2488.3,2488.2,61.69616543]
[1747745568373,4.01880802,2488.3,2488.2,65.11927388]
[1747745568802,4.01880802,2488.3,2488.2,57.11927388]
[1747745568991,4.01880802,2488.3,2488.2,65.11927388]
[1747745569193,4.01880802,2488.3,2488.2,57.11927388]
[1747745569913,4.01880802,2488.3,2488.2,53.216911]
[1747745570215,4.80430802,2488.3,2488.2,25.49]
[1747745573420,4.01880802,2488.3,2488.2,25.49]
[1747745575129,4.01880802,2488.3,2488.2,17.339]
[1747745575330,4.01880802,2488.3,2488.2,25.491]
[1747745576998,4.01880802,2488.3,2488.2,25.492]
[1747745578938,4.01880802,2488.3,2488.2,42.656853]
[1747745579348,4.01880802,2488.3,2488.2,19.8882]
[1747745579667,4.01880802,2488.3,2488.2,25.492]
[1747745580061,4.01880802,2488.3,2488.2,33.895756]
[1747745580365,4.01880802,2488.3,2488.2,33.150965]
[1747745580681,4.01880802,2488.3,2488.2,29.197777]
[1747745581034,4.01880802,2488.3,2488.2,25.492]
[1747745583445,4.80240802,2488.3,2488.2,17.339]
[1747745583876,5.68451676,2488.3,2488.2,25.492]
[1747745584351,4.80240802,2488.3,2488.2,25.492]
[1747745585634,4.80240802,2488.3,2488.2,17.339]
[1747745585969,4.80240802,2488.3,2488.2,25.492]
[1747745586359,4.83213889,2487.6,2487.5,17.348]
[1747745586672,12.83213889,2487.6,2487.5,25.502]
[1747745586876,14.33786497,2487.6,2487.5,25.502]
[1747745588135,12.83213889,2487.6,2487.5,25.502]
[1747745588638,12.83213889,2487.6,2487.5,26.16866667]
[1747745588871,12.83213889,2487.6,2487.5,18.01466667]
[1747745589188,12.83213889,2487.6,2487.5,26.15366667]
[1747745594801,4.01993889,2487.6,2487.5,26.15366667]
[1747745596971,4.01993889,2487.6,2487.5,28.76903334]
[1747745597174,4.01993889,2487.6,2487.5,37.95853834]
[1747745597350,4.01993889,2487.6,2487.5,34.11013334]
[1747745597786,4.01993889,2487.6,2487.5,32.54013334]
[1747745597965,4.01993889,2487.6,2487.5,28.76903334]
[1747745600177,4.01993889,2487.6,2487.5,32.37043134]
[1747745600494,4.01993889,2487.6,2487.5,31.07560067]
[1747745601058,4.01993889,2487.6,2487.5,29.79060067]
[1747745602760,4.01993889,2487.6,2487.5,30.60630067]
[1747745602957,4.01981027,2487.7,2487.5,30.60630067]
[1747745603161,4.01981027,2487.7,2487.6,3.66313007]
[1747745603361,4.01981027,2487.7,2487.6,19.13537907]
[1747745603594,4.01981027,2487.7,2487.6,10.30982807]
[1747745603795,4.0196445,2487.8,2487.6,10.30982807]
[1747745604005,4.0197773,2487.7,2487.6,3.66313007]
[1747745604390,4.0197773,2487.7,2487.6,17.39741407]
[1747745605169,4.01970239,2487.8,2487.6,17.39741407]
[1747745605298,4.01970239,2487.8,2487.7,9.86367888]
[1747745605820,4.01970239,2487.8,2487.7,3.90236288]
[1747745606167,4.01970239,2487.8,2487.7,7.53054488]
[1747745607623,4.01970239,2487.8,2487.7,3.90236288]
[1747745607827,4.01944697,2488.0,2487.8,8.0]
[1747745608143,0.7791,2488.6,2487.9,8.63732509]
[1747745608298,4.01913106,2488.1,2488.0,8.14]